[Event "Chessable Masters - Torneo preliminare"]
[White "Ibarra Jerez, Jose Carlos"]
[Black "Iskusnyh, Sergei"]
[WhiteFideId "2226332"]
[BlackFideId "4120027"]
[WhiteElo "2546"]
[BlackElo "2345"]
[Result "1-0"]
[Round "1"]
[TimeControl "600+2"]
[Date "2023.03.13"]
[WhiteClock "0:01:19"]
[BlackClock "0:00:35"]

1. e4 {[%clk 0:10:00]}  e6 {[%clk 0:09:28]} 2. d4 {[%clk 0:09:59]}  d5 {[%clk 0:09:25]} 3. Nc3 {[%clk 0:09:58]}  Nf6 {[%clk 0:09:24]} 4. Bg5 {[%clk 0:09:57]}  dxe4 {[%clk 0:09:24]} 5. Nxe4 {[%clk 0:09:57]}  Nbd7 {[%clk 0:09:23]} 6. Nf3 {[%clk 0:09:54]}  h6 {[%clk 0:09:21]} 7. Nxf6+ {[%clk 0:09:51]}  Nxf6 {[%clk 0:09:17]} 8. Be3 {[%clk 0:09:52]}  Bd6 {[%clk 0:09:00]} 9. Bd3 {[%clk 0:09:44]}  b6 {[%clk 0:08:10]} 10. Ne5 {[%clk 0:09:33]}  O-O {[%clk 0:07:28]} 11. Qf3 {[%clk 0:09:23]}  Nd5 {[%clk 0:07:26]} 12. O-O-O {[%clk 0:07:14]}  c5 {[%clk 0:06:57]} 13. c4 {[%clk 0:05:49]}  cxd4 {[%clk 0:06:03]} 14. Bxd4 {[%clk 0:05:39]}  Bxe5 {[%clk 0:06:00]} 15. Bxe5 {[%clk 0:04:39]}  Qg5+ {[%clk 0:05:59]} 16. Kb1 {[%clk 0:04:41]}  Qxe5 {[%clk 0:06:00]} 17. cxd5 {[%clk 0:04:29]}  exd5 {[%clk 0:05:47]} 18. Rhe1 {[%clk 0:04:29]}  Qg5 {[%clk 0:05:18]} 19. h4 {[%clk 0:04:22]}  Qxh4 {[%clk 0:05:16]} 20. Qxd5 {[%clk 0:04:20]}  Rb8 {[%clk 0:03:44]} 21. Bc2 {[%clk 0:03:08]}  Qf6 {[%clk 0:03:12]} 22. Qe4 {[%clk 0:02:43]}  g6 {[%clk 0:03:09]} 23. Qe7 {[%clk 0:02:34]}  Kg7 {[%clk 0:02:49]} 24. Rd6 {[%clk 0:02:28]}  Qxe7 {[%clk 0:02:39]} 25. Rxe7 {[%clk 0:02:30]}  Rb7 {[%clk 0:02:36]} 26. Rxg6+ {[%clk 0:02:29]}  Kh8 {[%clk 0:02:34]} 27. Rxh6+ {[%clk 0:02:30]}  Kg7 {[%clk 0:02:34]} 28. Rg6+ {[%clk 0:02:26]}  Kh8 {[%clk 0:02:34]} 29. Rxb7 {[%clk 0:02:09]}  Bxb7 {[%clk 0:02:34]} 30. Rg3 {[%clk 0:02:05]}  Re8 {[%clk 0:02:32]} 31. Bd3 {[%clk 0:02:00]}  Bd5 {[%clk 0:02:19]} 32. a3 {[%clk 0:01:53]}  Bb3 {[%clk 0:02:06]} 33. Kc1 {[%clk 0:01:52]}  a5 {[%clk 0:01:45]} 34. Bb5 {[%clk 0:01:44]}  Rc8+ {[%clk 0:01:34]} 35. Rc3 {[%clk 0:01:44]}  Rxc3+ {[%clk 0:01:35]} 36. bxc3 {[%clk 0:01:46]}  Kg7 {[%clk 0:01:36]} 37. Kd2 {[%clk 0:01:47]}  Kf6 {[%clk 0:01:37]} 38. Ke3 {[%clk 0:01:48]}  Ke5 {[%clk 0:01:36]} 39. g4 {[%clk 0:01:40]}  Kd5 {[%clk 0:01:27]} 40. g5 {[%clk 0:01:35]}  Kc5 {[%clk 0:00:38]} 41. Bd3 {[%clk 0:01:33]}  Kd5 {[%clk 0:00:39]} 42. f4 {[%clk 0:01:33]}  Ba2 {[%clk 0:00:37]} 43. Bh7 {[%clk 0:01:26]}  Kc4 {[%clk 0:00:35]} 44. Bg8 {[%clk 0:01:25]}  Kxc3 {[%clk 0:00:32]} 45. g6 {[%clk 0:01:14]}  fxg6 {[%clk 0:00:32]} 46. Bxa2 {[%clk 0:01:16]}  Kb2 {[%clk 0:00:33]} 47. Bf7 {[%clk 0:01:17]}  Kxa3 {[%clk 0:00:35]} 48. Bxg6 {[%clk 0:01:19]}  b5 {[%clk 0:00:35]} 49. f5 {[%clk 0:01:19]} 1-0


[Site "Internet"]

[Event "Chessable Masters - Torneo preliminare"]
[White "Girya, Olga"]
[Black "Van Foreest, Jorden"]
[WhiteFideId "4195752"]
[BlackFideId "1039784"]
[WhiteElo "2327"]
[BlackElo "2682"]
[Result "0-1"]
[Round "1"]
[TimeControl "600+2"]
[Date "2023.03.13"]
[WhiteClock "0:00:02"]
[BlackClock "0:00:21"]

1. d4 {[%clk 0:09:58]}  Nf6 {[%clk 0:09:53]} 2. Nf3 {[%clk 0:09:57]}  d5 {[%clk 0:09:49]} 3. c4 {[%clk 0:09:57]}  c6 {[%clk 0:09:47]} 4. Qb3 {[%clk 0:09:56]}  dxc4 {[%clk 0:09:42]} 5. Qxc4 {[%clk 0:09:57]}  Bf5 {[%clk 0:09:40]} 6. g3 {[%clk 0:09:56]}  e6 {[%clk 0:09:40]} 7. Bg2 {[%clk 0:09:57]}  Be7 {[%clk 0:09:39]} 8. O-O {[%clk 0:09:57]}  O-O {[%clk 0:09:39]} 9. Nbd2 {[%clk 0:09:46]}  h6 {[%clk 0:09:36]} 10. Qb3 {[%clk 0:09:35]}  Qb6 {[%clk 0:09:25]} 11. Nc4 {[%clk 0:09:32]}  Qa6 {[%clk 0:09:20]} 12. Bf4 {[%clk 0:09:25]}  Be4 {[%clk 0:09:01]} 13. Nd6 {[%clk 0:08:00]}  Bxd6 {[%clk 0:08:59]} 14. Bxd6 {[%clk 0:08:00]}  Re8 {[%clk 0:08:54]} 15. Rfe1 {[%clk 0:07:45]}  Nbd7 {[%clk 0:08:52]} 16. Bf1 {[%clk 0:07:28]}  Qb6 {[%clk 0:08:48]} 17. Qxb6 {[%clk 0:07:07]}  axb6 {[%clk 0:08:47]} 18. Nd2 {[%clk 0:07:08]}  Bg6 {[%clk 0:07:43]} 19. e4 {[%clk 0:06:56]}  b5 {[%clk 0:07:36]} 20. f3 {[%clk 0:06:35]}  Red8 {[%clk 0:07:25]} 21. Be7 {[%clk 0:05:36]}  Rdc8 {[%clk 0:07:25]} 22. Nb3 {[%clk 0:05:09]}  Ne8 {[%clk 0:07:25]} 23. d5 {[%clk 0:04:11]}  exd5 {[%clk 0:06:58]} 24. exd5 {[%clk 0:04:12]}  Nc7 {[%clk 0:06:57]} 25. dxc6 {[%clk 0:03:49]}  bxc6 {[%clk 0:06:56]} 26. a3 {[%clk 0:03:29]}  Nd5 {[%clk 0:06:23]} 27. Bd6 {[%clk 0:03:29]}  N7b6 {[%clk 0:06:21]} 28. Rac1 {[%clk 0:03:16]}  Na4 {[%clk 0:05:51]} 29. Be5 {[%clk 0:03:16]}  f6 {[%clk 0:05:51]} 30. Bd4 {[%clk 0:03:16]}  Bf7 {[%clk 0:05:48]} 31. Nc5 {[%clk 0:03:12]}  Ndb6 {[%clk 0:04:57]} 32. Nxa4 {[%clk 0:01:09]}  Nxa4 {[%clk 0:04:59]} 33. Re7 {[%clk 0:01:06]}  Bd5 {[%clk 0:04:37]} 34. Re3 {[%clk 0:00:56]}  c5 {[%clk 0:04:31]} 35. Bc3 {[%clk 0:00:46]}  Rab8 {[%clk 0:04:13]} 36. Rd1 {[%clk 0:00:39]}  Bc6 {[%clk 0:03:50]} 37. Bh3 {[%clk 0:00:37]}  Re8 {[%clk 0:03:49]} 38. Rde1 {[%clk 0:00:34]}  Rxe3 {[%clk 0:03:46]} 39. Rxe3 {[%clk 0:00:36]}  Rd8 {[%clk 0:03:43]} 40. b3 {[%clk 0:00:31]}  Rd1+ {[%clk 0:00:38]} 41. Kf2 {[%clk 0:00:31]}  Nxc3 {[%clk 0:00:39]} 42. Rxc3 {[%clk 0:00:32]}  Rd2+ {[%clk 0:00:41]} 43. Ke3 {[%clk 0:00:26]}  Rxh2 {[%clk 0:00:40]} 44. Be6+ {[%clk 0:00:26]}  Kf8 {[%clk 0:00:41]} 45. Rxc5 {[%clk 0:00:28]}  Be8 {[%clk 0:00:42]} 46. Rc8 {[%clk 0:00:13]}  Ke7 {[%clk 0:00:43]} 47. Bd5 {[%clk 0:00:09]}  Ra2 {[%clk 0:00:40]} 48. Ra8 {[%clk 0:00:09]}  Bd7 {[%clk 0:00:29]} 49. Kd4 {[%clk 0:00:07]}  h5 {[%clk 0:00:21]} 50. Ra7 {[%clk 0:00:07]}  Rc2 {[%clk 0:00:19]} 51. Be4 {[%clk 0:00:04]}  Rc1 {[%clk 0:00:19]} 52. Bf5 {[%clk 0:00:05]}  Rd1+ {[%clk 0:00:18]} 53. Kc5 {[%clk 0:00:06]}  g5 {[%clk 0:00:19]} 54. a4 {[%clk 0:00:06]}  bxa4 {[%clk 0:00:19]} 55. bxa4 {[%clk 0:00:07]}  Kd8 {[%clk 0:00:17]} 56. Bxd7 {[%clk 0:00:07]}  Rxd7 {[%clk 0:00:19]} 57. Rxd7+ {[%clk 0:00:07]}  Kxd7 {[%clk 0:00:21]} 58. a5 {[%clk 0:00:08]}  h4 {[%clk 0:00:18]} 59. gxh4 {[%clk 0:00:08]}  gxh4 {[%clk 0:00:20]} 60. a6 {[%clk 0:00:02]}  Kc7 {[%clk 0:00:20]} 61. Kd4 {[%clk 0:00:02]}  h3 {[%clk 0:00:21]} 0-1


[Site "Internet"]

[Event "Chessable Masters - Torneo preliminare"]
[White "Nguyen, Thai Dai Van"]
[Black "Oparin, Grigoriy"]
[WhiteFideId "358878"]
[BlackFideId "24125890"]
[WhiteElo "2544"]
[BlackElo "2650"]
[Result "0-1"]
[Round "2"]
[TimeControl "600+2"]
[Date "2023.03.13"]
[WhiteClock "0:00:07"]
[BlackClock "0:01:05"]

1. Nf3 {[%clk 0:09:58]}  Nf6 {[%clk 0:10:00]} 2. c4 {[%clk 0:09:59]}  e6 {[%clk 0:10:01]} 3. Nc3 {[%clk 0:09:59]}  d5 {[%clk 0:10:02]} 4. d4 {[%clk 0:10:01]}  Nbd7 {[%clk 0:10:00]} 5. Qc2 {[%clk 0:10:00]}  dxc4 {[%clk 0:10:00]} 6. e4 {[%clk 0:09:49]}  c5 {[%clk 0:10:01]} 7. d5 {[%clk 0:09:00]}  exd5 {[%clk 0:09:57]} 8. exd5 {[%clk 0:08:45]}  Nb6 {[%clk 0:09:34]} 9. Bg5 {[%clk 0:08:34]}  h6 {[%clk 0:09:10]} 10. Qe2+ {[%clk 0:08:03]}  Qe7 {[%clk 0:09:10]} 11. Bxf6 {[%clk 0:08:05]}  gxf6 {[%clk 0:09:08]} 12. Ne4 {[%clk 0:07:45]}  Kd8 {[%clk 0:08:06]} 13. d6 {[%clk 0:07:22]}  Qe6 {[%clk 0:08:06]} 14. O-O-O {[%clk 0:07:24]}  Qf5 {[%clk 0:07:27]} 15. Qe3 {[%clk 0:06:17]}  h5 {[%clk 0:07:22]} 16. Nh4 {[%clk 0:04:44]}  Qe6 {[%clk 0:07:05]} 17. g3 {[%clk 0:04:24]}  f5 {[%clk 0:06:07]} 18. Bh3 {[%clk 0:02:54]}  Bh6 {[%clk 0:03:51]} 19. f4 {[%clk 0:02:53]}  Qxe4 {[%clk 0:03:52]} 20. Qc3 {[%clk 0:02:53]}  Bxf4+ {[%clk 0:03:14]} 21. gxf4 {[%clk 0:02:53]}  Qxf4+ {[%clk 0:03:16]} 22. Kb1 {[%clk 0:02:42]}  Qh6 {[%clk 0:03:17]} 23. Bxf5 {[%clk 0:02:17]}  Re8 {[%clk 0:02:53]} 24. Rhf1 {[%clk 0:01:44]}  Be6 {[%clk 0:02:43]} 25. Bxe6 {[%clk 0:01:37]}  Qxe6 {[%clk 0:02:45]} 26. Rde1 {[%clk 0:01:13]}  Nd5 {[%clk 0:02:06]} 27. Qg3 {[%clk 0:01:13]}  Ne3 {[%clk 0:01:58]} 28. Rf4 {[%clk 0:00:51]}  Qxd6 {[%clk 0:01:55]} 29. Qg5+ {[%clk 0:00:27]}  f6 {[%clk 0:01:55]} 30. Qxf6+ {[%clk 0:00:22]}  Qxf6 {[%clk 0:01:56]} 31. Rxf6 {[%clk 0:00:23]}  Kc7 {[%clk 0:01:56]} 32. Rh6 {[%clk 0:00:16]}  Ng4 {[%clk 0:01:48]} 33. Rh7+ {[%clk 0:00:16]}  Kc6 {[%clk 0:01:48]} 34. Rg1 {[%clk 0:00:09]}  Rh8 {[%clk 0:01:39]} 35. Rxh8 {[%clk 0:00:11]}  Rxh8 {[%clk 0:01:39]} 36. h3 {[%clk 0:00:13]}  Nf2 {[%clk 0:01:37]} 37. Rg3 {[%clk 0:00:11]}  Rf8 {[%clk 0:01:33]} 38. Ng6 {[%clk 0:00:11]}  Re8 {[%clk 0:01:33]} 39. Rf3 {[%clk 0:00:11]}  Nd3 {[%clk 0:01:32]} 40. b3 {[%clk 0:00:12]}  Kb5 {[%clk 0:01:21]} 41. a3 {[%clk 0:00:05]}  Re2 {[%clk 0:01:10]} 42. bxc4+ {[%clk 0:00:04]}  Kxc4 {[%clk 0:01:10]} 43. Nh4 {[%clk 0:00:06]}  Kc3 {[%clk 0:01:04]} 44. Nf5 {[%clk 0:00:07]}  c4 {[%clk 0:01:05]} 0-1


[Site "Internet"]

[Event "Chessable Masters - Torneo preliminare"]
[White "Bindrich, Falko"]
[Black "Nguyen, Ngoc Truong Son"]
[WhiteFideId "4676670"]
[BlackFideId "12401110"]
[WhiteElo "2548"]
[BlackElo "2585"]
[Result "1/2-1/2"]
[Round "2"]
[TimeControl "600+2"]
[Date "2023.03.13"]
[WhiteClock "0:03:24"]
[BlackClock "0:02:20"]

1. d4 {[%clk 0:10:00]}  Nf6 {[%clk 0:09:58]} 2. c4 {[%clk 0:10:01]}  e6 {[%clk 0:09:56]} 3. Nc3 {[%clk 0:10:03]}  Bb4 {[%clk 0:09:56]} 4. Qc2 {[%clk 0:10:04]}  d5 {[%clk 0:09:41]} 5. cxd5 {[%clk 0:10:04]}  exd5 {[%clk 0:09:39]} 6. Bg5 {[%clk 0:10:04]}  c6 {[%clk 0:09:24]} 7. e3 {[%clk 0:10:03]}  h6 {[%clk 0:09:16]} 8. Bh4 {[%clk 0:10:04]}  Be6 {[%clk 0:09:08]} 9. Bd3 {[%clk 0:10:04]}  Bd6 {[%clk 0:08:51]} 10. Nf3 {[%clk 0:09:57]}  Nbd7 {[%clk 0:08:50]} 11. Bg3 {[%clk 0:09:54]}  Bxg3 {[%clk 0:08:49]} 12. hxg3 {[%clk 0:09:56]}  O-O {[%clk 0:08:45]} 13. O-O-O {[%clk 0:09:45]}  a5 {[%clk 0:08:17]} 14. Kb1 {[%clk 0:09:44]}  b5 {[%clk 0:07:56]} 15. Nd2 {[%clk 0:09:40]}  Qb6 {[%clk 0:07:44]} 16. Rc1 {[%clk 0:09:13]}  a4 {[%clk 0:07:18]} 17. Ne2 {[%clk 0:08:48]}  Rfc8 {[%clk 0:07:15]} 18. Bf5 {[%clk 0:08:30]}  c5 {[%clk 0:06:28]} 19. Bxe6 {[%clk 0:08:29]}  fxe6 {[%clk 0:05:51]} 20. Qg6 {[%clk 0:08:04]}  Nf8 {[%clk 0:05:46]} 21. dxc5 {[%clk 0:08:03]}  Rxc5 {[%clk 0:05:45]} 22. Qd3 {[%clk 0:08:04]}  Rac8 {[%clk 0:05:37]} 23. Rxc5 {[%clk 0:07:39]}  Rxc5 {[%clk 0:05:39]} 24. Rc1 {[%clk 0:07:20]}  Ng4 {[%clk 0:04:35]} 25. Rxc5 {[%clk 0:06:35]}  Qxc5 {[%clk 0:04:34]} 26. Qd4 {[%clk 0:06:36]}  Qxd4 {[%clk 0:04:28]} 27. Nxd4 {[%clk 0:06:38]}  Nxf2 {[%clk 0:04:29]} 28. Nxb5 {[%clk 0:06:39]}  Nd7 {[%clk 0:04:22]} 29. Kc2 {[%clk 0:06:17]}  Kf7 {[%clk 0:04:06]} 30. Nc3 {[%clk 0:05:48]}  Nb6 {[%clk 0:03:56]} 31. b3 {[%clk 0:05:26]}  axb3+ {[%clk 0:03:49]} 32. Kxb3 {[%clk 0:05:28]}  Ke7 {[%clk 0:03:48]} 33. Kb4 {[%clk 0:05:17]}  Kd6 {[%clk 0:03:29]} 34. Nb5+ {[%clk 0:05:04]}  Kd7 {[%clk 0:03:27]} 35. a4 {[%clk 0:05:05]}  Nd3+ {[%clk 0:03:22]} 36. Ka5 {[%clk 0:04:39]}  Nc8 {[%clk 0:03:09]} 37. Nd4 {[%clk 0:04:26]}  e5 {[%clk 0:02:58]} 38. Nc2 {[%clk 0:04:17]}  Nd6 {[%clk 0:02:44]} 39. Kb6 {[%clk 0:03:51]}  Nc8+ {[%clk 0:02:44]} 40. Kb5 {[%clk 0:03:43]}  Nd6+ {[%clk 0:02:39]} 41. Kb6 {[%clk 0:03:25]}  Nc8+ {[%clk 0:02:37]} 42. Kb5 {[%clk 0:03:23]}  Nd6+ {[%clk 0:02:20]} 43. Kb6 {[%clk 0:03:24]} 1/2-1/2


[Site "Internet"]

[Event "Chessable Masters - Torneo preliminare"]
[White "Artemiev, Vladislav"]
[Black "Paravyan, David"]
[WhiteFideId "24101605"]
[BlackFideId "4194985"]
[WhiteElo "2735"]
[BlackElo "2598"]
[Result "1-0"]
[Round "2"]
[TimeControl "600+2"]
[Date "2023.03.13"]
[WhiteClock "0:00:12"]
[BlackClock "0:00:04"]

1. c4 {[%clk 0:09:45]}  c5 {[%clk 0:09:59]} 2. Nf3 {[%clk 0:09:43]}  Nf6 {[%clk 0:09:59]} 3. g3 {[%clk 0:09:37]}  d5 {[%clk 0:10:00]} 4. cxd5 {[%clk 0:09:37]}  Nxd5 {[%clk 0:10:02]} 5. Bg2 {[%clk 0:09:38]}  Nc6 {[%clk 0:10:03]} 6. d4 {[%clk 0:09:39]}  cxd4 {[%clk 0:10:04]} 7. Nxd4 {[%clk 0:09:40]}  Ndb4 {[%clk 0:10:05]} 8. Nxc6 {[%clk 0:09:41]}  Qxd1+ {[%clk 0:10:06]} 9. Kxd1 {[%clk 0:09:42]}  Nxc6 {[%clk 0:10:08]} 10. Nc3 {[%clk 0:09:39]}  Bf5 {[%clk 0:10:06]} 11. Bxc6+ {[%clk 0:08:35]}  bxc6 {[%clk 0:10:08]} 12. f3 {[%clk 0:08:14]}  O-O-O+ {[%clk 0:10:03]} 13. Ke1 {[%clk 0:08:14]}  e5 {[%clk 0:10:02]} 14. Be3 {[%clk 0:08:06]}  Kb7 {[%clk 0:09:54]} 15. Kf2 {[%clk 0:07:47]}  Be6 {[%clk 0:09:20]} 16. Rhd1 {[%clk 0:07:11]}  Be7 {[%clk 0:09:18]} 17. Ne4 {[%clk 0:06:48]}  Rd5 {[%clk 0:08:55]} 18. Rdc1 {[%clk 0:06:41]}  f5 {[%clk 0:07:49]} 19. Nc5+ {[%clk 0:06:23]}  Bxc5 {[%clk 0:07:50]} 20. Bxc5 {[%clk 0:06:24]}  Rhd8 {[%clk 0:07:49]} 21. Bb4 {[%clk 0:04:26]}  a5 {[%clk 0:07:09]} 22. Bc3 {[%clk 0:04:17]}  a4 {[%clk 0:07:09]} 23. Re1 {[%clk 0:04:00]}  Rc5 {[%clk 0:03:48]} 24. a3 {[%clk 0:03:59]}  Bb3 {[%clk 0:03:16]} 25. h4 {[%clk 0:03:29]}  g6 {[%clk 0:03:13]} 26. Rac1 {[%clk 0:02:52]}  Rdd5 {[%clk 0:02:40]} 27. e4 {[%clk 0:02:36]}  fxe4 {[%clk 0:02:08]} 28. Rxe4 {[%clk 0:02:32]}  Rd3 {[%clk 0:02:04]} 29. Rce1 {[%clk 0:02:16]}  Bd1 {[%clk 0:01:08]} 30. R1e3 {[%clk 0:01:49]}  Rxe3 {[%clk 0:00:52]} 31. Rxe3 {[%clk 0:01:39]}  Bb3 {[%clk 0:00:49]} 32. g4 {[%clk 0:01:36]}  h5 {[%clk 0:00:43]} 33. Kg3 {[%clk 0:01:29]}  Kc8 {[%clk 0:00:24]} 34. Bxe5 {[%clk 0:01:18]}  Rc4 {[%clk 0:00:15]} 35. Rd3 {[%clk 0:00:41]}  Rc5 {[%clk 0:00:11]} 36. Bf6 {[%clk 0:00:20]}  Bd5 {[%clk 0:00:07]} 37. Rd4 {[%clk 0:00:14]}  Rc4 {[%clk 0:00:06]} 38. gxh5 {[%clk 0:00:09]}  Rxd4 {[%clk 0:00:04]} 39. h6 {[%clk 0:00:11]}  Rd3 {[%clk 0:00:02]} 40. h7 {[%clk 0:00:10]}  Rxf3+ {[%clk 0:00:04]} 41. Kg4 {[%clk 0:00:12]} 1-0


[Site "Internet"]

[Event "Chessable Masters - Torneo preliminare"]
[White "Chirila, Ioan-Cristian"]
[Black "Gukesh, D"]
[WhiteFideId "1211668"]
[BlackFideId "46616543"]
[WhiteElo "2508"]
[BlackElo "2629"]
[Result "1/2-1/2"]
[Round "2"]
[TimeControl "600+2"]
[Date "2023.03.13"]
[WhiteClock "0:00:03"]
[BlackClock "0:00:05"]

1. d4 {[%clk 0:09:44]}  Nf6 {[%clk 0:09:57]} 2. c4 {[%clk 0:09:42]}  g6 {[%clk 0:09:58]} 3. Nc3 {[%clk 0:09:24]}  Bg7 {[%clk 0:09:58]} 4. Nf3 {[%clk 0:09:13]}  O-O {[%clk 0:09:58]} 5. g3 {[%clk 0:09:14]}  d5 {[%clk 0:09:50]} 6. Bg2 {[%clk 0:09:06]}  dxc4 {[%clk 0:09:32]} 7. Ne5 {[%clk 0:06:48]}  c5 {[%clk 0:09:07]} 8. dxc5 {[%clk 0:06:46]}  Qc7 {[%clk 0:09:08]} 9. Nxc4 {[%clk 0:06:17]}  Qxc5 {[%clk 0:09:07]} 10. Qb3 {[%clk 0:05:21]}  Be6 {[%clk 0:08:13]} 11. Qxb7 {[%clk 0:05:19]}  Nbd7 {[%clk 0:08:13]} 12. Nd2 {[%clk 0:04:36]}  Rab8 {[%clk 0:07:57]} 13. Qa6 {[%clk 0:04:14]}  Nd5 {[%clk 0:07:21]} 14. Nde4 {[%clk 0:03:59]}  Qc7 {[%clk 0:07:16]} 15. O-O {[%clk 0:03:43]}  Nxc3 {[%clk 0:04:28]} 16. Nxc3 {[%clk 0:03:38]}  Ne5 {[%clk 0:04:11]} 17. Nd5 {[%clk 0:02:46]}  Qd7 {[%clk 0:03:53]} 18. Rd1 {[%clk 0:02:38]}  Rb6 {[%clk 0:03:53]} 19. Qa3 {[%clk 0:02:26]}  Bxd5 {[%clk 0:03:26]} 20. Rxd5 {[%clk 0:02:22]}  Qe6 {[%clk 0:03:24]} 21. Qxa7 {[%clk 0:02:04]}  Nc4 {[%clk 0:03:24]} 22. Bg5 {[%clk 0:01:30]}  Rxb2 {[%clk 0:02:58]} 23. Rc1 {[%clk 0:01:07]}  Rxe2 {[%clk 0:02:48]} 24. Qxe7 {[%clk 0:00:51]}  Bb2 {[%clk 0:02:05]} 25. Rxc4 {[%clk 0:00:13]}  Re1+ {[%clk 0:02:05]} 26. Bf1 {[%clk 0:00:14]}  Rxf1+ {[%clk 0:02:07]} 27. Kxf1 {[%clk 0:00:16]}  Qxd5 {[%clk 0:02:08]} 28. Re4 {[%clk 0:00:07]}  Bg7 {[%clk 0:00:58]} 29. a4 {[%clk 0:00:08]}  Rb8 {[%clk 0:00:57]} 30. Qe8+ {[%clk 0:00:03]}  Bf8 {[%clk 0:00:08]} 31. Qxb8 {[%clk 0:00:04]}  Qxe4 {[%clk 0:00:09]} 32. Bh6 {[%clk 0:00:05]}  Qh1+ {[%clk 0:00:10]} 33. Ke2 {[%clk 0:00:06]}  Qe4+ {[%clk 0:00:12]} 34. Kf1 {[%clk 0:00:06]}  Qh1+ {[%clk 0:00:08]} 35. Ke2 {[%clk 0:00:07]}  Qe4+ {[%clk 0:00:10]} 36. Kd2 {[%clk 0:00:04]}  Qd4+ {[%clk 0:00:08]} 37. Ke2 {[%clk 0:00:03]}  Qe4+ {[%clk 0:00:05]} 1/2-1/2


[Site "Internet"]

[Event "Chessable Masters - Torneo preliminare"]
[White "Sevian, Samuel"]
[Black "Pichot, Alan"]
[WhiteFideId "2040506"]
[BlackFideId "110973"]
[WhiteElo "2582"]
[BlackElo "2549"]
[Result "1/2-1/2"]
[Round "2"]
[TimeControl "600+2"]
[Date "2023.03.13"]
[WhiteClock "0:00:11"]
[BlackClock "0:00:10"]

1. c4 {[%clk 0:10:01]}  e6 {[%clk 0:09:55]} 2. Nc3 {[%clk 0:10:01]}  d5 {[%clk 0:09:53]} 3. d4 {[%clk 0:10:01]}  Nf6 {[%clk 0:09:54]} 4. cxd5 {[%clk 0:09:47]}  exd5 {[%clk 0:09:54]} 5. Bg5 {[%clk 0:09:46]}  Bb4 {[%clk 0:09:54]} 6. e3 {[%clk 0:09:44]}  h6 {[%clk 0:09:55]} 7. Bh4 {[%clk 0:09:45]}  g5 {[%clk 0:09:55]} 8. Bg3 {[%clk 0:09:47]}  h5 {[%clk 0:09:57]} 9. h4 {[%clk 0:09:37]}  Ne4 {[%clk 0:09:55]} 10. Ne2 {[%clk 0:09:39]}  Nxg3 {[%clk 0:09:55]} 11. Nxg3 {[%clk 0:09:40]}  gxh4 {[%clk 0:09:56]} 12. Nxh5 {[%clk 0:09:41]}  c6 {[%clk 0:09:56]} 13. Qf3 {[%clk 0:09:31]}  Qg5 {[%clk 0:08:59]} 14. Be2 {[%clk 0:09:26]}  Be6 {[%clk 0:08:26]} 15. g3 {[%clk 0:04:57]}  hxg3 {[%clk 0:08:11]} 16. Rg1 {[%clk 0:04:56]}  gxf2+ {[%clk 0:07:02]} 17. Qxf2 {[%clk 0:04:53]}  Qe7 {[%clk 0:07:02]} 18. Rc1 {[%clk 0:04:21]}  Nd7 {[%clk 0:06:55]} 19. Ng7+ {[%clk 0:04:19]}  Kd8 {[%clk 0:06:51]} 20. Nh5 {[%clk 0:04:15]}  Rc8 {[%clk 0:05:19]} 21. a3 {[%clk 0:03:45]}  Bd6 {[%clk 0:05:19]} 22. Kd2 {[%clk 0:03:30]}  Kc7 {[%clk 0:05:07]} 23. Nb5+ {[%clk 0:02:57]}  Kb8 {[%clk 0:05:06]} 24. Nxd6 {[%clk 0:02:58]}  Qxd6 {[%clk 0:05:07]} 25. b4 {[%clk 0:02:30]}  Nb6 {[%clk 0:04:44]} 26. Rg5 {[%clk 0:02:21]}  Rcg8 {[%clk 0:04:28]} 27. Rcg1 {[%clk 0:02:07]}  Rxg5 {[%clk 0:04:26]} 28. Rxg5 {[%clk 0:02:09]}  Nd7 {[%clk 0:03:36]} 29. Qf4 {[%clk 0:01:21]}  Kc7 {[%clk 0:03:27]} 30. Rg7 {[%clk 0:01:16]}  Qxf4 {[%clk 0:03:17]} 31. Nxf4 {[%clk 0:01:12]}  Kd6 {[%clk 0:03:16]} 32. Bh5 {[%clk 0:01:11]}  Rf8 {[%clk 0:02:52]} 33. Bg4 {[%clk 0:00:50]}  b6 {[%clk 0:02:06]} 34. Bxe6 {[%clk 0:00:34]}  fxe6 {[%clk 0:02:07]} 35. Nd3 {[%clk 0:00:30]}  a5 {[%clk 0:01:48]} 36. bxa5 {[%clk 0:00:31]}  bxa5 {[%clk 0:01:50]} 37. Rg6 {[%clk 0:00:32]}  Rf6 {[%clk 0:01:43]} 38. Rg8 {[%clk 0:00:30]}  e5 {[%clk 0:01:21]} 39. dxe5+ {[%clk 0:00:21]}  Nxe5 {[%clk 0:01:22]} 40. Nxe5 {[%clk 0:00:13]}  Kxe5 {[%clk 0:01:23]} 41. Re8+ {[%clk 0:00:14]}  Kd6 {[%clk 0:00:51]} 42. Ra8 {[%clk 0:00:15]}  Rf2+ {[%clk 0:00:51]} 43. Kc3 {[%clk 0:00:17]}  Ke5 {[%clk 0:00:25]} 44. Re8+ {[%clk 0:00:18]}  Kd6 {[%clk 0:00:25]} 45. Ra8 {[%clk 0:00:19]}  Re2 {[%clk 0:00:20]} 46. Kd3 {[%clk 0:00:18]}  Rb2 {[%clk 0:00:15]} 47. Rxa5 {[%clk 0:00:18]}  Ke5 {[%clk 0:00:16]} 48. Rc5 {[%clk 0:00:13]}  Rb3+ {[%clk 0:00:15]} 49. Rc3 {[%clk 0:00:14]}  Rb6 {[%clk 0:00:13]} 50. a4 {[%clk 0:00:15]}  Ra6 {[%clk 0:00:10]} 51. a5 {[%clk 0:00:10]}  Rxa5 {[%clk 0:00:10]} 52. Rxc6 {[%clk 0:00:11]} 1/2-1/2


[Site "Internet"]